[Event "Titled Tuesday Blitz March 21 Early 2023"]
[White "Popov, Mikhail"]
[Black "Sanal, Vahap"]
[WhiteFideId "4146182"]
[BlackFideId "6300545"]
[WhiteElo "2270"]
[BlackElo "2606"]
[Result "0-1"]
[Round "04"]
[TimeControl "180+2"]
[Date "2023.03.21"]
[WhiteClock "0:00:06"]
[BlackClock "0:00:09"]

1. d4 {[%clk 0:03:00]}  d5 {[%clk 0:02:57]} 2. c4 {[%clk 0:03:00]}  c6 {[%clk 0:02:57]} 3. Nf3 {[%clk 0:03:01]}  Nf6 {[%clk 0:02:57]} 4. Nc3 {[%clk 0:03:01]}  e6 {[%clk 0:02:57]} 5. Qd3 {[%clk 0:02:47]}  dxc4 {[%clk 0:02:51]} 6. Qxc4 {[%clk 0:02:47]}  b5 {[%clk 0:02:52]} 7. Qd3 {[%clk 0:02:47]}  Bb7 {[%clk 0:02:52]} 8. e4 {[%clk 0:02:44]}  a6 {[%clk 0:02:53]} 9. Bg5 {[%clk 0:02:35]}  Be7 {[%clk 0:02:53]} 10. Be2 {[%clk 0:02:29]}  h6 {[%clk 0:02:51]} 11. Bh4 {[%clk 0:02:29]}  c5 {[%clk 0:02:46]} 12. e5 {[%clk 0:02:03]}  Nd5 {[%clk 0:02:40]} 13. Bxe7 {[%clk 0:02:03]}  Qxe7 {[%clk 0:02:40]} 14. dxc5 {[%clk 0:01:51]}  Nf4 {[%clk 0:02:23]} 15. Qd6 {[%clk 0:01:50]}  Nxg2+ {[%clk 0:02:18]} 16. Kf1 {[%clk 0:01:51]}  Nf4 {[%clk 0:02:18]} 17. Rg1 {[%clk 0:01:40]}  g5 {[%clk 0:01:49]} 18. h4 {[%clk 0:01:31]}  Nc6 {[%clk 0:01:38]} 19. Ne4 {[%clk 0:00:57]}  Rd8 {[%clk 0:01:26]} 20. Qxe7+ {[%clk 0:00:56]}  Kxe7 {[%clk 0:01:21]} 21. Nd6 {[%clk 0:00:56]}  Ba8 {[%clk 0:01:18]} 22. a4 {[%clk 0:00:45]}  Nxe2 {[%clk 0:01:01]} 23. Kxe2 {[%clk 0:00:45]}  b4 {[%clk 0:00:57]} 24. hxg5 {[%clk 0:00:41]}  hxg5 {[%clk 0:00:51]} 25. Rxg5 {[%clk 0:00:42]}  Rdf8 {[%clk 0:00:49]} 26. Rag1 {[%clk 0:00:35]}  Rh3 {[%clk 0:00:49]} 27. R1g3 {[%clk 0:00:34]}  Rh1 {[%clk 0:00:49]} 28. Rg1 {[%clk 0:00:34]}  Rh3 {[%clk 0:00:48]} 29. Rg8 {[%clk 0:00:17]}  Rh5 {[%clk 0:00:31]} 30. R1g7 {[%clk 0:00:15]}  Nxe5 {[%clk 0:00:27]} 31. Nxe5 {[%clk 0:00:09]}  Rxe5+ {[%clk 0:00:28]} 32. Kf1 {[%clk 0:00:09]}  Rxg8 {[%clk 0:00:23]} 33. Rxg8 {[%clk 0:00:10]}  Bf3 {[%clk 0:00:18]} 34. Rc8 {[%clk 0:00:09]}  Rd5 {[%clk 0:00:18]} 35. Kg1 {[%clk 0:00:08]}  f5 {[%clk 0:00:16]} 36. Kh2 {[%clk 0:00:08]}  f4 {[%clk 0:00:17]} 37. Rh8 {[%clk 0:00:07]}  Rd1 {[%clk 0:00:17]} 38. Rh7+ {[%clk 0:00:06]}  Kf6 {[%clk 0:00:10]} 39. Ne8+ {[%clk 0:00:06]}  Ke5 {[%clk 0:00:09]} 0-1


[Site "https://www.chess.com"]

[Event "Titled Tuesday Blitz March 21 Early 2023"]
[White "Real_OceanStorm"]
[Black "Ordekalog"]
[WhiteElo "2812"]
[BlackElo "2588"]
[Result "1-0"]
[Round "04"]
[TimeControl "180+2"]
[Date "2023.03.21"]
[WhiteClock "0:00:31"]
[BlackClock "0:00:05"]

1. e4 {[%clk 0:03:00]}  d5 {[%clk 0:02:59]} 2. exd5 {[%clk 0:02:58]}  Qxd5 {[%clk 0:02:58]} 3. Nc3 {[%clk 0:02:59]}  Qa5 {[%clk 0:02:57]} 4. d3 {[%clk 0:02:59]}  Nf6 {[%clk 0:02:57]} 5. Bd2 {[%clk 0:02:59]}  Nc6 {[%clk 0:02:51]} 6. Be2 {[%clk 0:02:59]}  Bf5 {[%clk 0:02:49]} 7. Nf3 {[%clk 0:02:57]}  O-O-O {[%clk 0:02:48]} 8. a3 {[%clk 0:02:57]}  Nd4 {[%clk 0:02:40]} 9. Ng5 {[%clk 0:02:33]}  Bg6 {[%clk 0:02:29]} 10. b4 {[%clk 0:02:32]}  Qf5 {[%clk 0:02:26]} 11. O-O {[%clk 0:02:31]}  e6 {[%clk 0:02:15]} 12. Nf3 {[%clk 0:02:27]}  Nxe2+ {[%clk 0:02:14]} 13. Nxe2 {[%clk 0:02:27]}  Bh5 {[%clk 0:01:51]} 14. Nf4 {[%clk 0:02:02]}  Bxf3 {[%clk 0:01:44]} 15. Qxf3 {[%clk 0:02:01]}  g5 {[%clk 0:01:43]} 16. Ne2 {[%clk 0:01:59]}  Qxf3 {[%clk 0:01:42]} 17. gxf3 {[%clk 0:02:00]}  Bg7 {[%clk 0:01:41]} 18. Bxg5 {[%clk 0:01:57]}  Rd5 {[%clk 0:01:32]} 19. Bd2 {[%clk 0:01:55]}  Rf5 {[%clk 0:01:18]} 20. f4 {[%clk 0:01:51]}  h5 {[%clk 0:00:50]} 21. Kh1 {[%clk 0:01:45]}  h4 {[%clk 0:00:50]} 22. Rab1 {[%clk 0:01:30]}  Nh5 {[%clk 0:00:50]} 23. Rg1 {[%clk 0:01:29]}  Bh6 {[%clk 0:00:48]} 24. Rg4 {[%clk 0:01:28]}  h3 {[%clk 0:00:44]} 25. Rh4 {[%clk 0:01:06]}  Rd8 {[%clk 0:00:37]} 26. Ng3 {[%clk 0:01:05]}  Nxg3+ {[%clk 0:00:36]} 27. fxg3 {[%clk 0:00:59]}  Bf8 {[%clk 0:00:35]} 28. Rxh3 {[%clk 0:00:59]}  a5 {[%clk 0:00:33]} 29. Kg2 {[%clk 0:00:59]}  Rb5 {[%clk 0:00:30]} 30. Rh7 {[%clk 0:00:52]}  Rd7 {[%clk 0:00:22]} 31. Kf3 {[%clk 0:00:45]}  Kd8 {[%clk 0:00:21]} 32. a4 {[%clk 0:00:44]}  Rb6 {[%clk 0:00:19]} 33. b5 {[%clk 0:00:44]}  Ke8 {[%clk 0:00:15]} 34. Bxa5 {[%clk 0:00:32]}  Rbd6 {[%clk 0:00:14]} 35. Bb4 {[%clk 0:00:31]}  Rd4 {[%clk 0:00:15]} 36. Bxf8 {[%clk 0:00:31]}  Kxf8 {[%clk 0:00:14]} 37. Rh8+ {[%clk 0:00:32]}  Kg7 {[%clk 0:00:14]} 38. Ra8 {[%clk 0:00:32]}  b6 {[%clk 0:00:08]} 39. a5 {[%clk 0:00:31]}  Ra4 {[%clk 0:00:05]} 40. a6 {[%clk 0:00:31]} 1-0


[Site "https://www.chess.com"]

[Event "Titled Tuesday Blitz March 21 Early 2023"]
[White "Kilic, Eray"]
[Black "Dehtiarov, Roman"]
[WhiteFideId "44517173"]
[BlackFideId "14186640"]
[WhiteElo "2328"]
[BlackElo "2162"]
[Result "0-1"]
[Round "04"]
[TimeControl "180+2"]
[Date "2023.03.21"]
[WhiteClock "0:00:08"]
[BlackClock "0:00:07"]

1. d4 {[%clk 0:03:00]}  Nf6 {[%clk 0:02:54]} 2. Nc3 {[%clk 0:03:00]}  d5 {[%clk 0:02:52]} 3. Bf4 {[%clk 0:03:00]}  e6 {[%clk 0:02:50]} 4. Nb5 {[%clk 0:03:00]}  Bd6 {[%clk 0:02:50]} 5. Nxd6+ {[%clk 0:02:45]}  cxd6 {[%clk 0:02:51]} 6. e3 {[%clk 0:02:45]}  O-O {[%clk 0:02:51]} 7. c3 {[%clk 0:02:45]}  Nc6 {[%clk 0:02:50]} 8. h4 {[%clk 0:02:45]}  h6 {[%clk 0:02:50]} 9. Nf3 {[%clk 0:02:45]}  Re8 {[%clk 0:02:49]} 10. Bg3 {[%clk 0:02:43]}  e5 {[%clk 0:02:49]} 11. Be2 {[%clk 0:02:43]}  Bf5 {[%clk 0:02:48]} 12. Qa4 {[%clk 0:02:40]}  Qb6 {[%clk 0:02:46]} 13. Qb5 {[%clk 0:02:35]}  Qc7 {[%clk 0:02:35]} 14. O-O {[%clk 0:02:30]}  a6 {[%clk 0:02:35]} 15. Qb3 {[%clk 0:02:23]}  Bg4 {[%clk 0:02:22]} 16. Rfe1 {[%clk 0:02:20]}  Qe7 {[%clk 0:02:21]} 17. Rad1 {[%clk 0:01:56]}  Rad8 {[%clk 0:02:19]} 18. Bh2 {[%clk 0:01:39]}  Rd7 {[%clk 0:01:47]} 19. a4 {[%clk 0:01:35]}  Rdd8 {[%clk 0:01:43]} 20. Qa2 {[%clk 0:01:29]}  Qe6 {[%clk 0:01:15]} 21. c4 {[%clk 0:01:12]}  exd4 {[%clk 0:01:02]} 22. cxd5 {[%clk 0:01:09]}  Qxd5 {[%clk 0:01:01]} 23. Qxd5 {[%clk 0:01:08]}  Nxd5 {[%clk 0:01:02]} 24. Nxd4 {[%clk 0:01:08]}  Bxe2 {[%clk 0:00:41]} 25. Rxe2 {[%clk 0:01:02]}  Nb6 {[%clk 0:00:41]} 26. b3 {[%clk 0:01:00]}  Ne5 {[%clk 0:00:37]} 27. Nf5 {[%clk 0:00:53]}  d5 {[%clk 0:00:28]} 28. Red2 {[%clk 0:00:54]}  Re6 {[%clk 0:00:12]} 29. a5 {[%clk 0:00:51]}  Nc8 {[%clk 0:00:12]} 30. Rxd5 {[%clk 0:00:51]}  Rxd5 {[%clk 0:00:13]} 31. Rxd5 {[%clk 0:00:51]}  Nc6 {[%clk 0:00:13]} 32. Bf4 {[%clk 0:00:47]}  N8e7 {[%clk 0:00:13]} 33. Nxe7+ {[%clk 0:00:46]}  Rxe7 {[%clk 0:00:14]} 34. f3 {[%clk 0:00:42]}  f6 {[%clk 0:00:14]} 35. e4 {[%clk 0:00:42]}  g5 {[%clk 0:00:14]} 36. hxg5 {[%clk 0:00:42]}  hxg5 {[%clk 0:00:15]} 37. Be3 {[%clk 0:00:43]}  Kf7 {[%clk 0:00:15]} 38. Bb6 {[%clk 0:00:43]}  Ke6 {[%clk 0:00:14]} 39. Kf2 {[%clk 0:00:37]}  Ne5 {[%clk 0:00:14]} 40. Bd4 {[%clk 0:00:29]}  Nc6 {[%clk 0:00:14]} 41. Bc3 {[%clk 0:00:29]}  Rf7 {[%clk 0:00:13]} 42. b4 {[%clk 0:00:28]}  f5 {[%clk 0:00:12]} 43. Ke2 {[%clk 0:00:24]}  fxe4 {[%clk 0:00:12]} 44. fxe4 {[%clk 0:00:25]}  Rf4 {[%clk 0:00:12]} 45. Ke3 {[%clk 0:00:24]}  Rg4 {[%clk 0:00:13]} 46. Rd2 {[%clk 0:00:19]}  Rg3+ {[%clk 0:00:12]} 47. Ke2 {[%clk 0:00:16]}  Rxc3 {[%clk 0:00:13]} 48. Rd5 {[%clk 0:00:16]}  Rc2+ {[%clk 0:00:12]} 49. Kf3 {[%clk 0:00:17]}  Ne5+ {[%clk 0:00:13]} 50. Kg3 {[%clk 0:00:17]}  Rc3+ {[%clk 0:00:13]} 51. Kf2 {[%clk 0:00:17]}  Ng4+ {[%clk 0:00:14]} 52. Ke2 {[%clk 0:00:17]}  Re3+ {[%clk 0:00:14]} 53. Kd2 {[%clk 0:00:18]}  Rxe4 {[%clk 0:00:15]} 54. Rxg5 {[%clk 0:00:18]}  Rxb4 {[%clk 0:00:15]} 55. Rg6+ {[%clk 0:00:18]}  Kf5 {[%clk 0:00:15]} 56. Rg7 {[%clk 0:00:19]}  Rb5 {[%clk 0:00:15]} 57. Kc3 {[%clk 0:00:20]}  Nf6 {[%clk 0:00:15]} 58. Kc4 {[%clk 0:00:20]}  Ne4 {[%clk 0:00:14]} 59. Rf7+ {[%clk 0:00:19]}  Ke6 {[%clk 0:00:14]} 60. Rh7 {[%clk 0:00:18]}  Nd6+ {[%clk 0:00:15]} 61. Kd4 {[%clk 0:00:18]}  Rxa5 {[%clk 0:00:15]} 62. Rh6+ {[%clk 0:00:19]}  Kd7 {[%clk 0:00:16]} 63. Rh1 {[%clk 0:00:20]}  Rg5 {[%clk 0:00:16]} 64. Rg1 {[%clk 0:00:19]}  Rg4+ {[%clk 0:00:16]} 65. Ke5 {[%clk 0:00:20]}  Rg5+ {[%clk 0:00:16]} 66. Kf4 {[%clk 0:00:19]}  Rg8 {[%clk 0:00:16]} 67. Ke5 {[%clk 0:00:20]}  b5 {[%clk 0:00:16]} 68. Rd1 {[%clk 0:00:20]}  Rg6 {[%clk 0:00:17]} 69. g4 {[%clk 0:00:20]}  Rg5+ {[%clk 0:00:16]} 70. Kf4 {[%clk 0:00:20]}  Rc5 {[%clk 0:00:13]} 71. g5 {[%clk 0:00:21]}  Ke7 {[%clk 0:00:14]} 72. Rh1 {[%clk 0:00:20]}  Rc4+ {[%clk 0:00:09]} 73. Ke5 {[%clk 0:00:20]}  Nf7+ {[%clk 0:00:08]} 74. Kd5 {[%clk 0:00:19]}  Nxg5 {[%clk 0:00:08]} 75. Rh6 {[%clk 0:00:20]}  Ra4 {[%clk 0:00:08]} 76. Rb6 {[%clk 0:00:20]}  Nf7 {[%clk 0:00:08]} 77. Rb7+ {[%clk 0:00:20]}  Ke8 {[%clk 0:00:08]} 78. Ra7 {[%clk 0:00:19]}  Kf8 {[%clk 0:00:08]} 79. Ke6 {[%clk 0:00:19]}  Re4+ {[%clk 0:00:08]} 80. Kf6 {[%clk 0:00:19]}  Rf4+ {[%clk 0:00:08]} 81. Kg6 {[%clk 0:00:19]}  Ne5+ {[%clk 0:00:06]} 82. Kg5 {[%clk 0:00:20]}  Rf1 {[%clk 0:00:06]} 83. Rxa6 {[%clk 0:00:19]}  Ke7 {[%clk 0:00:06]} 84. Rb6 {[%clk 0:00:19]}  Rb1 {[%clk 0:00:06]} 85. Kf5 {[%clk 0:00:19]}  Nc4 {[%clk 0:00:07]} 86. Rb8 {[%clk 0:00:19]}  Kd6 {[%clk 0:00:07]} 87. Ke4 {[%clk 0:00:20]}  Kc5 {[%clk 0:00:08]} 88. Kd3 {[%clk 0:00:20]}  Rb3+ {[%clk 0:00:08]} 89. Kc2 {[%clk 0:00:21]}  Rh3 {[%clk 0:00:09]} 90. Rf8 {[%clk 0:00:18]}  Kb4 {[%clk 0:00:09]} 91. Rf2 {[%clk 0:00:19]}  Rc3+ {[%clk 0:00:09]} 92. Kb1 {[%clk 0:00:18]}  Rh3 {[%clk 0:00:10]} 93. Kc2 {[%clk 0:00:19]}  Ka4 {[%clk 0:00:10]} 94. Rf4 {[%clk 0:00:16]}  Ka3 {[%clk 0:00:08]} 95. Rf2 {[%clk 0:00:14]}  b4 {[%clk 0:00:06]} 96. Rf8 {[%clk 0:00:10]}  Nb6 {[%clk 0:00:06]} 97. Rf5 {[%clk 0:00:09]}  Na4 {[%clk 0:00:06]} 98. Rb5 {[%clk 0:00:08]}  b3+ {[%clk 0:00:06]} 99. Kd2 {[%clk 0:00:08]}  b2 {[%clk 0:00:06]} 100. Kc2 {[%clk 0:00:08]}  Rc3+ {[%clk 0:00:06]} 101. Kd2 {[%clk 0:00:08]}  Rb3 {[%clk 0:00:07]} 0-1


[Site "https://www.chess.com"]

[Event "Titled Tuesday Blitz March 21 Early 2023"]
[White "Ljukin, Sergei"]
[Black "Galchenko, Matvey"]
[WhiteFideId "14102200"]
[BlackFideId "24175480"]
[WhiteElo "2312"]
[BlackElo "2404"]
[Result "0-1"]
[Round "04"]
[TimeControl "180+2"]
[Date "2023.03.21"]
[WhiteClock "0:00:01"]
[BlackClock "0:00:13"]

1. e4 {[%clk 0:02:55]}  e6 {[%clk 0:02:58]} 2. d4 {[%clk 0:02:54]}  d5 {[%clk 0:02:57]} 3. Nc3 {[%clk 0:02:54]}  Bb4 {[%clk 0:02:57]} 4. e5 {[%clk 0:02:54]}  Ne7 {[%clk 0:02:57]} 5. a3 {[%clk 0:02:54]}  Bxc3+ {[%clk 0:02:57]} 6. bxc3 {[%clk 0:02:54]}  c5 {[%clk 0:02:57]} 7. h4 {[%clk 0:02:55]}  Qc7 {[%clk 0:02:57]} 8. h5 {[%clk 0:02:53]}  cxd4 {[%clk 0:02:57]} 9. cxd4 {[%clk 0:02:53]}  Qc3+ {[%clk 0:02:57]} 10. Bd2 {[%clk 0:02:53]}  Qxd4 {[%clk 0:02:58]} 11. Nf3 {[%clk 0:02:53]}  Qe4+ {[%clk 0:02:58]} 12. Be2 {[%clk 0:02:48]}  Nf5 {[%clk 0:02:59]} 13. O-O {[%clk 0:02:36]}  Nc6 {[%clk 0:02:55]} 14. Rb1 {[%clk 0:02:31]}  O-O {[%clk 0:02:37]} 15. h6 {[%clk 0:01:55]}  gxh6 {[%clk 0:02:32]} 16. Bd3 {[%clk 0:01:42]}  Qg4 {[%clk 0:02:25]} 17. Qe1 {[%clk 0:01:33]}  b6 {[%clk 0:01:49]} 18. Nh2 {[%clk 0:00:58]}  Qg7 {[%clk 0:01:25]} 19. Bxf5 {[%clk 0:00:47]}  exf5 {[%clk 0:01:24]} 20. f4 {[%clk 0:00:48]}  Be6 {[%clk 0:01:17]} 21. Rf3 {[%clk 0:00:29]}  Ne7 {[%clk 0:00:48]} 22. Bb4 {[%clk 0:00:24]}  Ng6 {[%clk 0:00:39]} 23. Bxf8 {[%clk 0:00:23]}  Qxf8 {[%clk 0:00:40]} 24. Rc3 {[%clk 0:00:19]}  d4 {[%clk 0:00:40]} 25. Rf3 {[%clk 0:00:18]}  Qc5 {[%clk 0:00:39]} 26. Rf2 {[%clk 0:00:17]}  Rd8 {[%clk 0:00:36]} 27. Qb4 {[%clk 0:00:15]}  Qc6 {[%clk 0:00:36]} 28. Nf1 {[%clk 0:00:13]}  Qe4 {[%clk 0:00:34]} 29. Ng3 {[%clk 0:00:12]}  Qe3 {[%clk 0:00:33]} 30. Qd2 {[%clk 0:00:09]}  Qxd2 {[%clk 0:00:32]} 31. Rxd2 {[%clk 0:00:09]}  Nxf4 {[%clk 0:00:33]} 32. Rf2 {[%clk 0:00:08]}  Ng6 {[%clk 0:00:32]} 33. Nxf5 {[%clk 0:00:08]}  Nxe5 {[%clk 0:00:31]} 34. Nxh6+ {[%clk 0:00:06]}  Kf8 {[%clk 0:00:32]} 35. Nf5 {[%clk 0:00:06]}  Ng4 {[%clk 0:00:32]} 36. Rf4 {[%clk 0:00:06]}  Bxf5 {[%clk 0:00:22]} 37. Rxf5 {[%clk 0:00:06]}  Ne3 {[%clk 0:00:23]} 38. Rf4 {[%clk 0:00:06]}  Nxc2 {[%clk 0:00:23]} 39. Rd1 {[%clk 0:00:06]}  d3 {[%clk 0:00:23]} 40. Rd2 {[%clk 0:00:06]}  Nxa3 {[%clk 0:00:21]} 41. Ra4 {[%clk 0:00:04]}  Nb5 {[%clk 0:00:21]} 42. Rb4 {[%clk 0:00:03]}  Nc3 {[%clk 0:00:18]} 43. Rb3 {[%clk 0:00:03]}  Ne2+ {[%clk 0:00:18]} 44. Kf2 {[%clk 0:00:03]}  Nf4 {[%clk 0:00:18]} 45. g3 {[%clk 0:00:02]}  Ne6 {[%clk 0:00:17]} 46. Rbxd3 {[%clk 0:00:03]}  Rc8 {[%clk 0:00:17]} 47. Rd7 {[%clk 0:00:02]}  a5 {[%clk 0:00:16]} 48. Rb7 {[%clk 0:00:02]}  Rc6 {[%clk 0:00:16]} 49. Rdd7 {[%clk 0:00:02]}  Ng5 {[%clk 0:00:16]} 50. Ke3 {[%clk 0:00:02]}  Kg7 {[%clk 0:00:15]} 51. Rbc7 {[%clk 0:00:02]}  Re6+ {[%clk 0:00:15]} 52. Kf2 {[%clk 0:00:01]}  h5 {[%clk 0:00:13]} 0-1


[Site "https://www.chess.com"]

[Event "Titled Tuesday Blitz March 21 Early 2023"]
[White "Kuzmin, Roman"]
[Black "Pakleza, Zbigniew"]
[WhiteFideId "44134932"]
[BlackFideId "1119290"]
[WhiteElo "2146"]
[BlackElo "2410"]
[Result "1-0"]
[Round "04"]
[TimeControl "180+2"]
[Date "2023.03.21"]
[WhiteClock "0:00:04"]
[BlackClock "0:00:02"]

1. e4 {[%clk 0:03:00]}  d6 {[%clk 0:02:59]} 2. d4 {[%clk 0:03:00]}  Nf6 {[%clk 0:03:00]} 3. Nc3 {[%clk 0:03:00]}  c6 {[%clk 0:03:01]} 4. h4 {[%clk 0:02:58]}  b5 {[%clk 0:03:00]} 5. a3 {[%clk 0:02:52]}  e5 {[%clk 0:02:59]} 6. Nf3 {[%clk 0:02:46]}  Nbd7 {[%clk 0:02:57]} 7. h5 {[%clk 0:02:45]}  Be7 {[%clk 0:02:46]} 8. h6 {[%clk 0:02:44]}  g6 {[%clk 0:02:46]} 9. Be2 {[%clk 0:01:55]}  Bb7 {[%clk 0:02:45]} 10. O-O {[%clk 0:01:50]}  O-O {[%clk 0:02:42]} 11. Bg5 {[%clk 0:01:44]}  Re8 {[%clk 0:02:37]} 12. Qd2 {[%clk 0:01:40]}  Qc7 {[%clk 0:02:36]} 13. Rad1 {[%clk 0:01:37]}  a5 {[%clk 0:02:25]} 14. b4 {[%clk 0:01:20]}  axb4 {[%clk 0:02:24]} 15. axb4 {[%clk 0:01:21]}  Bf8 {[%clk 0:02:22]} 16. Qd3 {[%clk 0:01:03]}  Ng4 {[%clk 0:01:23]} 17. dxe5 {[%clk 0:00:50]}  Ndxe5 {[%clk 0:01:24]} 18. Nxe5 {[%clk 0:00:50]}  Nxe5 {[%clk 0:01:25]} 19. Qg3 {[%clk 0:00:43]}  f6 {[%clk 0:01:10]} 20. Bxf6 {[%clk 0:00:38]}  Bxh6 {[%clk 0:01:10]} 21. f4 {[%clk 0:00:38]}  Nd7 {[%clk 0:00:46]} 22. Bg5 {[%clk 0:00:35]}  Bg7 {[%clk 0:00:43]} 23. f5 {[%clk 0:00:31]}  Be5 {[%clk 0:00:35]} 24. Bf4 {[%clk 0:00:30]}  Ra3 {[%clk 0:00:35]} 25. Bxe5 {[%clk 0:00:29]}  Nxe5 {[%clk 0:00:34]} 26. fxg6 {[%clk 0:00:27]}  hxg6 {[%clk 0:00:35]} 27. Rf6 {[%clk 0:00:25]}  Qb6+ {[%clk 0:00:22]} 28. Kh2 {[%clk 0:00:18]}  Kg7 {[%clk 0:00:20]} 29. Rf4 {[%clk 0:00:08]}  Rh8+ {[%clk 0:00:17]} 30. Rh4 {[%clk 0:00:08]}  Qd8 {[%clk 0:00:18]} 31. Rxh8 {[%clk 0:00:06]}  Qxh8+ {[%clk 0:00:19]} 32. Kg1 {[%clk 0:00:07]}  Qf8 {[%clk 0:00:11]} 33. Rf1 {[%clk 0:00:07]}  Qd8 {[%clk 0:00:09]} 34. Qe3 {[%clk 0:00:07]}  Bc8 {[%clk 0:00:07]} 35. Qd4 {[%clk 0:00:07]}  Be6 {[%clk 0:00:04]} 36. Nb1 {[%clk 0:00:07]}  Ra2 {[%clk 0:00:03]} 37. Bd3 {[%clk 0:00:06]}  Qc7 {[%clk 0:00:01]} 38. Nc3 {[%clk 0:00:05]}  Qa7 {[%clk 0:00:02]} 39. Qxa7+ {[%clk 0:00:03]}  Rxa7 {[%clk 0:00:03]} 40. Kf2 {[%clk 0:00:03]}  Ra3 {[%clk 0:00:03]} 41. Ne2 {[%clk 0:00:02]}  Nxd3+ {[%clk 0:00:02]} 42. cxd3 {[%clk 0:00:03]}  Rxd3 {[%clk 0:00:03]} 43. Nf4 {[%clk 0:00:04]}  Rd2+ {[%clk 0:00:02]} 44. Ke3 {[%clk 0:00:04]}  Rb2 {[%clk 0:00:02]} 45. Nxe6+ {[%clk 0:00:04]}  Kg8 {[%clk 0:00:03]} 46. Rf8+ {[%clk 0:00:04]}  Kh7 {[%clk 0:00:04]} 47. Rf7+ {[%clk 0:00:04]}  Kh6 {[%clk 0:00:04]} 48. Rf8 {[%clk 0:00:04]}  Kh5 {[%clk 0:00:03]} 49. Rd8 {[%clk 0:00:04]}  Rxb4 {[%clk 0:00:02]} 50. Rxd6 {[%clk 0:00:04]}  Rb2 {[%clk 0:00:02]} 51. Rxc6 {[%clk 0:00:03]}  Rxg2 {[%clk 0:00:02]} 52. Nf4+ {[%clk 0:00:03]}  Kg4 {[%clk 0:00:02]} 53. Nxg2 {[%clk 0:00:04]} 1-0


[Site "https://www.chess.com"]

[Event "Titled Tuesday Blitz March 21 Early 2023"]
[White "TheKnightOfBosnia"]
[Black "Smirnov, Pavel"]
[BlackFideId "4123425"]
[WhiteElo "2531"]
[BlackElo "2519"]
[Result "0-1"]
[Round "04"]
[TimeControl "180+2"]
[Date "2023.03.21"]
[WhiteClock "0:01:08"]
[BlackClock "0:01:39"]

1. e4 {[%clk 0:03:00]}  e5 {[%clk 0:02:59]} 2. Nf3 {[%clk 0:03:01]}  Nc6 {[%clk 0:03:00]} 3. Bb5 {[%clk 0:03:01]}  a6 {[%clk 0:03:00]} 4. Ba4 {[%clk 0:03:01]}  Nf6 {[%clk 0:02:59]} 5. Nc3 {[%clk 0:03:02]}  b5 {[%clk 0:02:58]} 6. Bb3 {[%clk 0:03:02]}  Be7 {[%clk 0:02:59]} 7. O-O {[%clk 0:02:52]}  d6 {[%clk 0:02:58]} 8. h3 {[%clk 0:02:25]}  O-O {[%clk 0:02:50]} 9. a3 {[%clk 0:02:24]}  Na5 {[%clk 0:02:47]} 10. Ba2 {[%clk 0:02:25]}  c5 {[%clk 0:02:48]} 11. d3 {[%clk 0:02:24]}  Be6 {[%clk 0:02:48]} 12. Nd5 {[%clk 0:02:19]}  Nxd5 {[%clk 0:02:44]} 13. exd5 {[%clk 0:02:19]}  Bd7 {[%clk 0:02:45]} 14. c3 {[%clk 0:02:15]}  Kh8 {[%clk 0:02:43]} 15. b4 {[%clk 0:02:14]}  Nb7 {[%clk 0:02:43]} 16. c4 {[%clk 0:02:12]}  a5 {[%clk 0:02:34]} 17. Bd2 {[%clk 0:02:07]}  axb4 {[%clk 0:02:29]} 18. axb4 {[%clk 0:02:07]}  f5 {[%clk 0:02:28]} 19. bxc5 {[%clk 0:02:02]}  Nxc5 {[%clk 0:02:29]} 20. d4 {[%clk 0:02:01]}  exd4 {[%clk 0:02:25]} 21. Nxd4 {[%clk 0:01:53]}  Bf6 {[%clk 0:02:25]} 22. Be3 {[%clk 0:01:41]}  b4 {[%clk 0:01:55]} 23. Qd2 {[%clk 0:01:20]}  b3 {[%clk 0:01:44]} 24. Bxb3 {[%clk 0:01:13]}  Rxa1 {[%clk 0:01:39]} 25. Rxa1 {[%clk 0:01:14]}  Bxd4 {[%clk 0:01:39]} 26. Bxd4 {[%clk 0:01:08]}  Nxb3 {[%clk 0:01:39]} 0-1


[Site "https://www.chess.com"]

[Event "Titled Tuesday Blitz March 21 Early 2023"]
[White "Mahdavi, Reza"]
[Black "Mortazavi, Ali"]
[WhiteFideId "12595926"]
[BlackFideId "401323"]
[WhiteElo "2208"]
[BlackElo "2339"]
[Result "1-0"]
[Round "04"]
[TimeControl "180+2"]
[Date "2023.03.21"]
[WhiteClock "0:00:33"]
[BlackClock "0:00:01"]

1. Nf3 {[%clk 0:02:42]}  Nf6 {[%clk 0:02:59]} 2. g3 {[%clk 0:02:42]}  g6 {[%clk 0:03:00]} 3. b3 {[%clk 0:02:41]}  Bg7 {[%clk 0:03:01]} 4. Bb2 {[%clk 0:02:42]}  O-O {[%clk 0:03:02]} 5. Bg2 {[%clk 0:02:43]}  d6 {[%clk 0:03:03]} 6. d4 {[%clk 0:02:42]}  a5 {[%clk 0:02:59]} 7. c4 {[%clk 0:02:41]}  a4 {[%clk 0:02:54]} 8. O-O {[%clk 0:02:41]}  c6 {[%clk 0:02:53]} 9. Nc3 {[%clk 0:02:41]}  a3 {[%clk 0:02:53]} 10. Bc1 {[%clk 0:02:42]}  Qa5 {[%clk 0:02:54]} 11. Bd2 {[%clk 0:02:41]}  Qh5 {[%clk 0:02:53]} 12. h4 {[%clk 0:02:33]}  e5 {[%clk 0:02:49]} 13. dxe5 {[%clk 0:02:28]}  dxe5 {[%clk 0:02:49]} 14. Be3 {[%clk 0:02:29]}  Na6 {[%clk 0:02:34]} 15. Qc1 {[%clk 0:02:16]}  Bf5 {[%clk 0:02:20]} 16. Qxa3 {[%clk 0:02:14]}  Ng4 {[%clk 0:02:12]} 17. Bd2 {[%clk 0:02:13]}  e4 {[%clk 0:02:09]} 18. Ng5 {[%clk 0:02:13]}  e3 {[%clk 0:02:09]} 19. fxe3 {[%clk 0:02:14]}  Rad8 {[%clk 0:02:00]} 20. Qc1 {[%clk 0:02:11]}  Be5 {[%clk 0:01:34]} 21. Rf3 {[%clk 0:02:00]}  Nc5 {[%clk 0:01:05]} 22. b4 {[%clk 0:01:46]}  Ne6 {[%clk 0:01:04]} 23. Nh3 {[%clk 0:01:32]}  Nf6 {[%clk 0:00:42]} 24. Nf4 {[%clk 0:01:27]}  Nxf4 {[%clk 0:00:40]} 25. exf4 {[%clk 0:01:27]}  Bd4+ {[%clk 0:00:38]} 26. Be3 {[%clk 0:01:26]}  Rfe8 {[%clk 0:00:30]} 27. Bxd4 {[%clk 0:01:24]}  Rxd4 {[%clk 0:00:31]} 28. Re3 {[%clk 0:01:24]}  Red8 {[%clk 0:00:30]} 29. Bf3 {[%clk 0:01:18]}  Bg4 {[%clk 0:00:30]} 30. Re5 {[%clk 0:01:18]}  Qh6 {[%clk 0:00:30]} 31. Qe3 {[%clk 0:01:16]}  Bxf3 {[%clk 0:00:27]} 32. Qxf3 {[%clk 0:01:17]}  Rxc4 {[%clk 0:00:27]} 33. Kg2 {[%clk 0:01:14]}  Qf8 {[%clk 0:00:26]} 34. a3 {[%clk 0:01:13]}  h5 {[%clk 0:00:23]} 35. Rd1 {[%clk 0:01:10]}  Rxd1 {[%clk 0:00:20]} 36. Nxd1 {[%clk 0:01:11]}  Rc2 {[%clk 0:00:17]} 37. Ne3 {[%clk 0:01:07]}  Ra2 {[%clk 0:00:17]} 38. f5 {[%clk 0:01:07]}  Qd6 {[%clk 0:00:14]} 39. Nc4 {[%clk 0:01:08]}  Qd4 {[%clk 0:00:05]} 40. fxg6 {[%clk 0:01:08]}  Qxc4 {[%clk 0:00:04]} 41. Qxf6 {[%clk 0:00:52]}  Rxe2+ {[%clk 0:00:03]} 42. Rxe2 {[%clk 0:00:40]}  Qxe2+ {[%clk 0:00:03]} 43. Qf2 {[%clk 0:00:40]}  Qe4+ {[%clk 0:00:03]} 44. Qf3 {[%clk 0:00:39]}  Qc2+ {[%clk 0:00:02]} 45. Kh3 {[%clk 0:00:39]}  Qxg6 {[%clk 0:00:02]} 46. Qf4 {[%clk 0:00:40]}  Qe6+ {[%clk 0:00:02]} 47. Kh2 {[%clk 0:00:38]}  Kh7 {[%clk 0:00:01]} 48. Qd2 {[%clk 0:00:36]}  Qe4 {[%clk 0:00:01]} 49. a4 {[%clk 0:00:36]}  Kg6 {[%clk 0:00:01]} 50. Qg5+ {[%clk 0:00:31]}  Kh7 {[%clk 0:00:02]} 51. Qxh5+ {[%clk 0:00:32]}  Kg8 {[%clk 0:00:03]} 52. Qg5+ {[%clk 0:00:33]}  Kf8 {[%clk 0:00:02]} 53. Qd2 {[%clk 0:00:34]}  Qe6 {[%clk 0:00:01]} 54. b5 {[%clk 0:00:33]} 1-0


[Site "https://www.chess.com"]